fUSD/lending_fUSD_20260126
["ID","MTS","AMOUNT","RATE_DAILY","PERIOD"]
[403656872,1769449517005,-209.40437684,0.00049499,120]
[403656873,1769449517079,-600.0,0.00049499,120]
[403656874,1769449517157,-250.0,0.00049499,120]
[403656875,1769449517233,-500.0,0.00049499,120]
[403656876,1769449517307,-644.79446246,0.00049499,120]
[403656877,1769449517386,-500.0,0.00049499,120]
[403656878,1769449517469,-201.93286099,0.00049499,120]
[403656879,1769449517544,-151.0,0.00049499,120]
[403656880,1769449517617,-217.15233878,0.00049499,120]
[403656881,1769449517693,-250.0,0.00049499,120]
[403656882,1769449517771,-600.0,0.00049499,120]
[403656883,1769449517860,-500.0,0.00049499,120]
[403656884,1769449517939,-668.65185757,0.00049499,120]
[403656885,1769449518010,-500.0,0.00049499,120]
[403656886,1769449518080,-209.40437684,0.00049499,120]
[403656887,1769449518151,-151.0,0.00049499,120]
[403656888,1769449518219,-225.18697532,0.00049499,120]
[403656889,1769449518287,-250.0,0.00049499,120]
[403656890,1769449518356,-600.0,0.00049499,120]
[403656891,1769449518425,-500.0,0.00049499,120]
[403656892,1769449518493,-693.3919763,0.00049499,120]
[403656893,1769449518563,-785.0,0.00049499,30]
[403656894,1769449518633,-500.0,0.00049499,120]
[403656895,1769449518713,-217.15233878,0.00049499,120]
[403656896,1769449518788,-151.0,0.00049499,120]
[403656897,1769449518865,-233.51889341,0.00049499,120]
[403656898,1769449518941,-600.0,0.00049499,120]
[403656899,1769449519020,-250.0,0.00049499,120]
[403656900,1769449519091,-500.0,0.00049499,120]
[403656901,1769449519161,-719.04747942,0.00049499,120]
[403656902,1769449519229,-500.0,0.00049499,120]
[403656903,1769449519299,-225.18697532,0.00049499,120]
[403656904,1769449519367,-220.0,0.00049499,120]
[403656905,1769449519436,-151.0,0.00049499,120]
[403656906,1769449519505,-242.15909246,0.00049499,120]
[403656907,1769449519576,-600.0,0.00049499,120]
[403656908,1769449519646,-151.0,0.00049499,120]
[403656909,1769449519724,-500.0,0.00049499,120]
[403656910,1769449519796,-479.32324248,0.00049499,120]
[403656911,1769449519866,-500.0,0.00049499,120]
[403656912,1769449519940,-233.51889341,0.00049499,120]
[403656913,1769449520015,-220.0,0.00049499,120]
[403656914,1769449520086,-752.0,0.00049499,30]
[403656915,1769449520156,-251.11897888,0.00049499,120]
[403656916,1769449520225,-600.0,0.00049499,120]
[403656917,1769449520296,-500.0,0.00049499,120]
[403656918,1769449520365,-151.0,0.00049499,120]
[403656919,1769449520434,-220.0,0.00049499,120]
[403656920,1769449520503,-500.0,0.00049499,120]
[403656921,1769449520574,-242.15909246,0.00049499,120]
[403656922,1769449520643,-600.0,0.00049499,120]
[403656923,1769449520713,-260.4103811,0.00049499,120]
[403656924,1769449520789,-500.0,0.00049499,120]
[403656925,1769449520860,-151.0,0.00049499,120]
[403656926,1769449520933,-251.11897888,0.00049499,120]
[403656927,1769449521002,-220.0,0.00049499,120]
[403656928,1769449521074,-500.0,0.00049499,120]
[403656929,1769449521145,-600.0,0.00049499,120]
[403656930,1769449521213,-270.0455652,0.00049499,120]
[403656931,1769449521282,-500.0,0.00049499,120]
[403656932,1769449521350,-220.0,0.00049499,120]
[403656933,1769449521421,-260.4103811,0.00049499,120]
[403656934,1769449521490,-600.0,0.00049499,120]
[403656935,1769449521561,-280.03725112,0.00049499,120]
[403656936,1769449521632,-785.0,0.00049499,30]
[403656937,1769449521704,-500.0,0.00049499,120]
[403656938,1769449521774,-220.0,0.00049499,120]
[403656939,1769449521847,-270.0455652,0.00049499,120]
[403656940,1769449521920,-290.39862941,0.00049499,120]
[403656941,1769449521999,-500.0,0.00049499,120]
[403656942,1769449522072,-280.03725112,0.00049499,120]
[403656943,1769449522144,-301.1433787,0.00049499,120]
[403656944,1769449522215,-500.0,0.00049499,120]
[403656945,1769449522290,-290.39862941,0.00049499,120]
[403656946,1769449522362,-752.0,0.00049499,30]
[403656947,1769449522433,-500.0,0.00049499,120]
[403656948,1769449522757,-301.1433787,0.00049499,120]
[403656949,1769449522831,-616.0,0.00049499,120]
[403656950,1769449522903,-500.0,0.00049499,120]
[403656951,1769449522976,-638.792,0.00049499,120]
[403656952,1769449523052,-662.427304,0.00049499,120]
[403656953,1769449523127,-250.0,0.00049499,120]
[403656954,1769449523202,-500.0,0.00049499,120]
[403656955,1769449523277,-785.0,0.00049499,30]
[403656956,1769449523354,-686.93711425,0.00049499,120]
[403656957,1769449523432,-500.0,0.00049499,120]
[403656958,1769449523504,-250.0,0.00049499,120]
[403656959,1769449523580,-712.35378748,0.00049499,120]
[403656960,1769449523655,-500.0,0.00049499,120]
[403656961,1769449523730,-738.71087761,0.00049499,120]
[403656962,1769449523805,-250.0,0.00049499,120]
[403656963,1769449523878,-300.0,0.00049499,120]
[403656964,1769449523951,-500.0,0.00049499,120]
[403656965,1769449524026,-250.0,0.00049499,120]
[403656966,1769449524101,-752.0,0.00049499,30]
[403656967,1769449524174,-766.04318008,0.00049499,120]
[403656968,1769449524245,-250.0,0.00049499,120]
[403656969,1769449524317,-311.1,0.00049499,120]
[403656970,1769449524391,-500.0,0.00049499,120]
[403656971,1769449524461,-250.0,0.00049499,120]
[403656972,1769449524538,-794.38677775,0.00049499,120]
[403656973,1769449524611,-250.0,0.00049499,120]
[403656974,1769449524683,-322.6107,0.00049499,120]
[403656975,1769449524756,-500.0,0.00049499,120]
[403656976,1769449524831,-250.0,0.00049499,120]
[403656977,1769449524907,-334.5472959,0.00049499,120]
[403656978,1769449524980,-200.0,0.00049499,31]
[403656979,1769449525051,-250.0,0.00049499,120]
[403656980,1769449525121,-500.0,0.00049499,120]
[403656981,1769449525193,-250.0,0.00049499,120]
[403656982,1769449525263,-823.77908852,0.00049499,120]
[403656983,1769449525332,-346.92554585,0.00049499,120]
[403656984,1769449525400,-207.4,0.00049499,31]
[403656985,1769449525473,-385.40135603,0.00049499,120]
[403656986,1769449525546,-500.0,0.00049499,120]
[403656987,1769449525618,-785.0,0.00049499,30]
[403656988,1769449525691,-250.0,0.00049499,120]
[403656989,1769449525765,-854.2589148,0.00049499,120]
[403656990,1769449525836,-359.76179104,0.00049499,120]
[403656991,1769449525908,-215.0738,0.00049499,31]
[403656992,1769449525983,-500.0,0.00049499,120]
[403656993,1769449526054,-250.0,0.00049499,120]
[403656994,1769449526126,-885.86649465,0.00049499,120]
[403656995,1769449526198,-447.84250094,0.00049499,120]
[403656996,1769449526269,-223.0315306,0.00049499,31]
[403656997,1769449526339,-500.0,0.00049499,120]
[403656998,1769449526409,-250.0,0.00049499,120]
[403656999,1769449526481,-918.64355495,0.00049499,120]
[403657000,1769449526552,-231.28369723,0.00049499,31]
[403657001,1769449526625,-500.0,0.00049499,120]
[403657002,1769449526698,-250.0,0.00049499,120]
[403657003,1769449526773,-952.63336648,0.00049499,120]
[403657004,1769449526846,-752.0,0.00049499,30]
[403657005,1769449526920,-239.84119403,0.00049499,31]
[403657006,1769449527000,-391.20377784,0.00049499,120]
[403657007,1769449527074,-250.0,0.00049499,120]
[403657008,1769449527147,-987.88080104,0.00049499,120]
[403657009,1769449527219,-248.71531821,0.00049499,31]
[403657010,1769449527294,-1024.43239068,0.00049499,120]
[403657011,1769449527365,-250.0,0.00049499,120]
[403657012,1769449527435,-257.91778498,0.00049499,31]
[403657013,1769449527509,-1062.33638913,0.00049499,120]
[403657014,1769449527582,-250.0,0.00049499,120]
[403657015,1769449527655,-267.46074303,0.00049499,31]
[403657016,1769449527730,-1101.64283553,0.00049499,120]
[403657017,1769449527805,-250.0,0.00049499,120]
[403657018,1769449527877,-342.0,0.00049499,31]
[403657019,1769449527952,-785.0,0.00049499,30]
[403657020,1769449528028,-1142.40362045,0.00049499,120]
[403657021,1769449528101,-785.0,0.00049499,30]
[403657022,1769449528174,-785.0,0.00049499,30]
[403657023,1769449528245,-785.0,0.00049499,30]
[403657024,1769449528318,-307.0,0.00049499,120]
[403657025,1769449528393,-1184.6725544,0.00049499,120]
[403657026,1769449528465,-3543.0,0.00049499,120]
[403657027,1769449528538,-785.0,0.00049499,30]
[403657028,1769449528793,-785.0,0.00049499,30]
[403657029,1769449528866,-785.0,0.00049499,30]
[403657030,1769449528940,-3543.0,0.00049499,120]
[403657031,1769449529017,-1228.50543892,0.00049499,120]
[403657032,1769449529092,-785.0,0.00049499,30]
[403657033,1769449529165,-752.0,0.00049499,30]
[403657034,1769449529237,-785.0,0.00049499,30]
[403657035,1769449529309,-785.0,0.00049499,30]
[403657036,1769449529381,-3543.0,0.00049499,120]
[403657037,1769449529453,-785.0,0.00049499,30]
[403657038,1769449529523,-785.0,0.00049499,30]
[403657039,1769449529593,-785.0,0.00049499,30]
[403657040,1769449529666,-3543.0,0.00049499,120]
[403657041,1769449529739,-785.0,0.00049499,30]
[403657042,1769449529810,-785.0,0.00049499,30]
[403657043,1769449529883,-2500.0,0.00049499,120]
[403657044,1769449529956,-788.56417855,0.00049499,30]
[403657045,1769449530033,-167938.21732259,0.000495,31]
[403657046,1769449530106,-5000000.0,0.000495,120]
[403657047,1769449530175,-798.01,0.000495,120]
[403657048,1769449530245,-150.0,0.000495,39]
[403657049,1769449530315,-500.0,0.000495,60]
[403657050,1769449530385,-577.44995,0.000495,120]
[403657051,1769449530455,-577.44996,0.000495,120]
[403657052,1769449530527,-577.44996,0.000495,120]
[403657053,1769449530598,-577.44995,0.000495,120]
[403657054,1769449530669,-577.44996,0.000495,120]
[403657055,1769449530740,-577.44996,0.000495,120]
[403657056,1769449530812,-1161.99921847,0.000495,30]
[403657057,1769449530882,-1161.99921847,0.000495,30]
[403657058,1769449530956,-253.0,0.000495,65]
[403657059,1769449531028,-1102.0,0.000495,30]
[403657060,1769449531100,-649.4,0.0004952,120]
[403657061,1769449531171,-151.0,0.000497,120]
[403657062,1769449531242,-350.98678882,0.000498,30]
[403657063,1769449531312,-445.45812303,0.000498,120]
[403657064,1769449531384,-4260.20313738,0.000498,120]
[403657065,1769449531454,-240000.0,0.000498,55]
[403657066,1769449531523,-240000.0,0.000498,60]
[403657067,1769449531593,-240000.0,0.000498,65]
[403657068,1769449531664,-309013.34619691,0.000498,30]
[403657069,1769449531735,-500.0,0.00049863,120]
[403657070,1769449531807,-160.11820455,0.00049884,120]
[403657071,1769449531880,-525.29801181,0.000499,30]
[403657072,1769449531952,-151.90524833,0.000499,30]
[403657073,1769449532024,-5000.0,0.000499,120]
[403657074,1769449532096,-606.0,0.00049939,31]
[403657075,1769449532168,-3128.235459,0.0004999,120]
[403657076,1769449532237,-406.68184302,0.0004999,120]
[403657077,1769449532303,-1025.20738624,0.0004999,120]
[403657078,1769449532373,-1160.64581152,0.0004999,60]
[403657079,1769449532442,-1050.3957063,0.0004999,120]
[403657080,1769449532513,-50000.0,0.0005,50]
[403657081,1769449532584,-150.0,0.0005,40]
[403657082,1769449532655,-500.0,0.0005,120]
[403657083,1769449532726,-3118.94660677,0.0005,120]
[403657084,1769449532796,-172.97562721,0.0005,120]
[403657085,1769449532866,-776.29735413,0.0005,30]
[403657086,1769449532938,-560.16868763,0.0005,120]
[403657087,1769449533010,-2455.77555485,0.0005,120]
[403657088,1769449533083,-586.58705281,0.0005,30]
[403657089,1769449533152,-903.42830022,0.0005,120]
[403657090,1769449533221,-200.0,0.0005,120]
[403657091,1769449533292,-334.45868503,0.0005,120]
[403657092,1769449533362,-1156.64228242,0.0005,120]
[403657093,1769449533437,-225.83763859,0.0005,120]
[403657094,1769449533508,-500.0,0.0005,30]
[403657095,1769449533580,-393.86449348,0.0005,120]
[403657096,1769449533651,-2161.21456413,0.0005,120]
[403657097,1769449533723,-200.0,0.0005,120]
[403657098,1769449533797,-653.02781303,0.0005,30]
[403657099,1769449533869,-160.57977752,0.0005,120]
[403657100,1769449533941,-200.0,0.0005,120]
[403657101,1769449534018,-1000.0,0.0005,120]
[403657102,1769449534089,-6141.77035946,0.0005,120]
[403657103,1769449534159,-12405.71247643,0.0005,30]
[403657104,1769449534228,-999.99,0.0005,120]
[403657105,1769449534297,-477.0917396,0.0005,120]
[403657106,1769449534366,-262.34045468,0.0005,120]
[403657107,1769449534437,-197.68766989,0.0005,120]
[403657108,1769449534684,-200.0,0.0005,120]
[403657109,1769449534756,-159.07328381,0.0005,30]
[403657110,1769449534825,-250.0,0.0005,120]
[403657111,1769449534895,-4592.04,0.0005,120]
[403657112,1769449534965,-1552.72,0.0005,120]
[403657113,1769449535039,-4076.0,0.0005,120]
[403657114,1769449535111,-151.36340535,0.0005,120]
[403657115,1769449535182,-10151.0,0.0005,120]
[403657116,1769449535251,-2818.8119185,0.0005,120]
[403657117,1769449535322,-1500.70655345,0.0005,120]
[403657118,1769449535394,-19319.77540553,0.0005,120]
[403657119,1769449535462,-1350.01591203,0.0005,90]
[403657120,1769449535531,-198.38,0.0005,120]
[403657121,1769449535601,-4052.54,0.0005,120]
[403657122,1769449535672,-48000.0,0.0005,90]
[403657123,1769449535743,-3014.0,0.0005,90]
[403657124,1769449535815,-1183.0,0.0005,30]
[403657125,1769449535891,-13954.45,0.0005,30]
[403657126,1769449535962,-500.0,0.00050048,60]
[403657127,1769449536038,-500.0,0.00050048,60]
[403657128,1769449536109,-152.0,0.000501,120]
[403657129,1769449536179,-151.0,0.000504,120]
[403657130,1769449536249,-500.0,0.0005041,120]
[403657131,1769449536319,-150.0,0.000505,40]
[403657132,1769449536387,-253.0,0.000505,69]
[403657133,1769449536456,-606.0,0.00050566,32]
[403657134,1769449536529,-500.0,0.00050596,60]
[403657135,1769449536603,-439.06409248,0.000506,120]
[403657136,1769449536675,-152.0,0.000507,120]
[403657137,1769449536745,-1840.09,0.000508,120]
[403657138,1769449536814,-1076.05735309,0.000508,120]
[403657139,1769449536885,-240000.0,0.000508,70]
[403657140,1769449536955,-615.0,0.00050878,120]
[403657141,1769449537028,-1408.0,0.00050878,120]
[403657142,1769449537098,-1333.0,0.00050878,120]
[403657143,1769449537169,-3000.0,0.0005095,76]
[403657144,1769449537239,-500.0,0.00050958,120]
[403657145,1769449537309,-3504.0,0.00051,120]
[403657146,1769449537378,-150.0,0.00051,40]
[403657147,1769449537448,-1000000.0,0.00051,120]
[403657148,1769449537517,-1000.0,0.00051,120]
[403657149,1769449537588,-2319.85,0.00051,120]
[403657150,1769449537658,-151.0,0.00051,120]
[403657151,1769449537728,-250.0,0.00051,120]
[403657152,1769449537799,-5705.34350944,0.00051,120]
[403657153,1769449537869,-1269.0,0.00051,120]
[403657154,1769449537942,-2442.0,0.00051,120]
[403657155,1769449538015,-6570.0,0.00051,120]
[403657156,1769449538087,-1204.0,0.00051,120]
[403657157,1769449538158,-916.0,0.00051,120]
[403657158,1769449538230,-591.0,0.00051,30]
[403657159,1769449538299,-379.61526282,0.0005109,120]
[403657160,1769449538368,-613.06,0.00051095,30]
[403657161,1769449538437,-613.06,0.00051095,30]
[403657162,1769449538521,-613.06,0.00051095,30]
[403657163,1769449538592,-613.06,0.00051097,30]
[403657164,1769449538665,-613.06,0.00051097,30]
[403657165,1769449538736,-613.06,0.00051097,30]
[403657166,1769449538807,-613.06,0.00051097,30]
[403657167,1769449538878,-613.06,0.00051097,30]
[403657168,1769449538951,-500.0,0.00051144,60]
[403657169,1769449539022,-500.0,0.00051144,60]
[403657170,1769449539091,-606.0,0.00051192,33]
[403657171,1769449539162,-152.0,0.000512,120]
[403657172,1769449539230,-179.98,0.00051232,30]
[403657173,1769449539299,-558.94,0.00051232,30]
[403657174,1769449539370,-150.0,0.00051232,30]
[403657175,1769449539444,-468.76,0.00051232,30]
[403657176,1769449539513,-179.98,0.00051232,30]
[403657177,1769449539581,-558.94,0.00051232,30]
[403657178,1769449539649,-150.0,0.00051232,30]
[403657179,1769449539718,-468.76,0.00051232,30]
[403657180,1769449539789,-558.94,0.00051232,30]
[403657181,1769449539861,-179.98,0.00051232,30]
[403657182,1769449539935,-150.0,0.00051232,30]
[403657183,1769449540001,-468.76,0.00051232,30]
[403657184,1769449540075,-179.98,0.00051232,30]
[403657185,1769449540143,-558.94,0.00051232,30]
[403657186,1769449540209,-468.76,0.00051232,30]
[403657187,1769449540276,-179.98,0.00051232,30]
[403657188,1769449540603,-468.76,0.00051232,30]
[403657189,1769449540673,-179.98,0.00051232,30]
[403657190,1769449540742,-468.76,0.00051232,30]
[403657191,1769449540815,-300.0,0.00051234,30]
[403657192,1769449540888,-1231.6,0.00051234,30]
[403657193,1769449540958,-1231.6,0.00051234,30]
[403657194,1769449541026,-405.49,0.00051234,30]
[403657195,1769449541094,-150.0,0.00051234,30]
[403657196,1769449541163,-1230.89,0.00051234,30]
[403657197,1769449541231,-150.0,0.00051234,30]
[403657198,1769449541299,-150.0,0.00051234,30]
[403657199,1769449541367,-558.94,0.00051234,30]
[403657200,1769449541436,-150.0,0.00051234,30]
[403657201,1769449541504,-558.94,0.00051234,30]
[403657202,1769449541573,-150.0,0.00051234,30]
[403657203,1769449541641,-150.0,0.00051234,30]
[403657204,1769449541713,-296.48,0.00051234,30]
[403657205,1769449541782,-179.98,0.00051234,30]
[403657206,1769449541854,-468.76,0.00051234,30]
[403657207,1769449541924,-179.98,0.00051234,30]
[403657208,1769449541994,-150.0,0.00051234,30]
[403657209,1769449542063,-468.76,0.00051234,30]
[403657210,1769449542130,-179.98,0.00051234,30]
[403657211,1769449542200,-468.76,0.00051234,30]
[403657212,1769449542270,-5160.0,0.000515,120]
[403657213,1769449542344,-358938.71528302,0.000515,120]
[403657214,1769449547182,-361.02572261,0.00016667,2]
[403657215,1769449559958,-8527.10314671,0.00016657,2]
[403657216,1769449559971,-10000.01,0.00016657,2]
[403657217,1769449560243,-4789.59280111,0.00016657,2]
[403657218,1769449560254,-248.80937011,0.00016658,2]
[403657219,1769449560263,-283.80462085,0.00016658,2]
[403657220,1769449560272,-289.0,0.00016666,2]
[403657221,1769449560282,-1200.0,0.00016666,2]
[403657222,1769449560291,-150.0,0.00016666,2]
[403657223,1769449560300,-3038.80320793,0.00016667,2]
[403657224,1769449560314,-10000.01,0.00016667,2]
[403657225,1769449560327,-10000.01,0.00016667,2]
[403657226,1769449560342,-10000.01,0.00016667,2]
[403657227,1769449560356,-10000.01,0.00016667,2]
[403657228,1769449560370,-10000.01,0.00016667,2]
[403657229,1769449560387,-10000.01,0.00016667,2]
[403657230,1769449560400,-10000.01,0.00016667,2]
[403657231,1769449560684,-171.92393582,0.00016667,2]
[403657232,1769449563124,300.0,0.00016656,2]
[403657233,1769449563464,-210.7921822,0.00016667,2]
[403657234,1769449566816,-157.22337686,0.00016667,2]
[403657235,1769449568900,-276.10927749,0.00016667,2]
[403657236,1769449576479,-191.0221153,0.00016667,2]
[403657237,1769449577915,-201.62648842,0.00016667,2]
[403657238,1769449580123,-206.68971342,0.00016667,2]
[403657239,1769449582865,-198.17893854,0.00016667,2]
[403657240,1769449586176,500.0,0.00016666,2]
[403657241,1769449586442,500.0,0.00016666,2]
[403657242,1769449594286,-224.63899196,0.00016667,2]
[403657243,1769449596590,500.0,0.00016666,2]
[403657244,1769449596817,500.0,0.00016666,2]
[403657245,1769449597817,-220.40832684,0.00016667,2]
[403657246,1769449600992,-272.86586766,0.00016667,2]
[403657247,1769449605088,-158.95571791,0.00016667,2]
[403657248,1769449607457,200.0,0.0001654,2]
[403657249,1769449608870,-153.61384336,0.00016667,2]
[403657250,1769449613016,-326.17817803,0.00016667,2]
[403657251,1769449615362,-332.29151069,0.00016667,2]
[403657252,1769449616700,-192.55584767,0.00016667,2]
[403657253,1769449621114,-337.25651874,0.00016667,2]
[403657254,1769449621628,300.0,0.00016666,2]
[403657255,1769449623206,7500.01,0.00016667,2]
[403657256,1769449623228,353.67022658,0.00016667,2]
[403657257,1769449623260,1248.69114802,0.00016667,2]
[403657258,1769449623288,3399.06685283,0.00016667,2]
[403657259,1769449624236,-282.28360718,0.00016667,2]
[403657260,1769449626364,-180.14659574,0.00016667,2]
[403657261,1769449627792,-151.29273343,0.00016667,2]
[403657262,1769449630720,285.70443904,0.00016667,2]
[403657263,1769449631434,-162.54389024,0.00016667,2]
[403657264,1769449631482,222.45288589,0.00016666,2]
[403657265,1769449633773,500.0,0.00016666,2]
[403657266,1769449633818,163.09240909,0.00016666,2]
[403657267,1769449633891,536.17412579,0.00016666,2]
[403657268,1769449633934,193.83329861,0.00016666,2]
[403657269,1769449637431,-185.90449884,0.00016667,2]
[403657270,1769449638612,500.0,0.00016666,2]
[403657271,1769449638880,-190.59259671,0.00016667,2]
[403657272,1769449638987,500.0,0.00016666,2]
[403657273,1769449639311,500.0,0.00016666,2]
[403657274,1769449639614,500.0,0.00016666,2]
[403657275,1769449639928,500.0,0.00016666,2]
[403657276,1769449640259,500.0,0.00016666,2]
[403657277,1769449640582,97.32461415,0.00016666,2]
[403657278,1769449640606,402.67538585,0.00016666,2]
[403657279,1769449640922,500.0,0.00016666,2]
[403657280,1769449641265,500.0,0.00016666,2]
[403657281,1769449641587,500.0,0.00016666,2]
[403657282,1769449641890,603.52370879,0.00016666,2]
[403657283,1769449644558,-376.42432675,0.00016667,2]
[403657284,1769449646506,-200.0,0.00016667,2]
[403657285,1769449648039,-183.1121574,0.00016667,2]
[403657286,1769449652417,-202.72394855,0.00016667,2]
[403657287,1769449653868,-247.27605145,0.00016667,2]
[403657290,1769449655812,-226.2996218,0.00016667,2]
[403657291,1769449681212,300.0,0.00016666,2]
[403657292,1769449682160,300.0,0.00016666,2]
[403657293,1769449682187,150.0,0.00016666,2]
[403657294,1769449701523,1138.0,0.00016666,2]
[403657295,1769449713942,155.71702013,0.00016666,2]
[403657296,1769449713978,500.0,0.00016666,2]
[403657297,1769449714052,225.32188805,0.00016666,2]
[403657298,1769449724958,1814.31,0.00016592,2]
[403657299,1769449737050,2910.46199718,0.00016567,2]
[403657300,1769449737076,10000.01,0.00016567,2]
[403657301,1769449737105,10000.01,0.00016567,2]
[403657302,1769449737129,10000.01,0.00016567,2]
[403657303,1769449737155,10000.01,0.00016567,2]
[403657304,1769449737180,10000.01,0.00016567,2]
[403657305,1769449737203,10000.01,0.00016567,2]
[403657306,1769449737227,10000.01,0.00016567,2]
[403657307,1769449737251,10000.01,0.00016567,2]
[403657308,1769449752477,-300.0,0.00016566,2]
[403657309,1769449773887,589.0,0.00018,33]
[403657310,1769449774135,589.0,0.00018626,33]
[403657311,1769449774408,589.0,0.00019253,33]
[403657312,1769449774443,252.34127662,0.00016467,2]
[403657313,1769449774717,589.0,0.00019879,33]
[403657314,1769449774958,589.0,0.00020505,34]
[403657315,1769449795291,-267.86018064,0.00016567,2]
[403657316,1769449797985,-165.93834011,0.00016567,2]
[403657317,1769449800728,-292.60400663,0.00016567,2]
[403657318,1769449801474,1200.0,0.00016566,2]
[403657319,1769449801503,300.0,0.00016566,2]
[403657320,1769449801555,300.0,0.00016566,2]
[403657321,1769449803900,289.0,0.00016567,2]
[403657322,1769449804971,-174.98741262,0.00016567,2]
[403657323,1769449808018,-217.37327442,0.00016567,2]
[403657324,1769449811332,-240.41329729,0.00016567,2]
[403657325,1769449813896,-156.65161085,0.00016567,2]
[403657326,1769449815873,-189.91299995,0.00016567,2]
[403657327,1769449818373,-225.08216547,0.00016567,2]
[403657328,1769449821314,-196.2213971,0.00016567,2]
[403657329,1769449824589,-170.56030923,0.00016567,2]
[403657334,1769449831760,-287.06431718,0.00016567,2]
[403657335,1769449831771,-1555.22270265,0.00016567,2]
[403657336,1769449831782,-503.21044542,0.00016567,2]
[403657337,1769449831794,-1826.92164788,0.00016567,2]
[403657338,1769449831805,-3817.38647451,0.00016567,2]
[403657339,1769449831817,-4602.18957108,0.00016567,2]
[403657340,1769449831828,-834.98957114,0.00016567,2]
[403657341,1769449831840,-500.0,0.00016567,2]
[403657342,1769449831859,-653.96479144,0.00016567,2]
[403657343,1769449831948,-424.73587066,0.00016567,2]
[403657344,1769449831959,-284.15203215,0.00016567,2]
[403657345,1769449831971,-10399.93228965,0.00016567,2]
[403657346,1769449832003,-25805.49801822,0.00016567,2]
[403657347,1769449832015,-254.72572641,0.00016567,2]
[403657348,1769449832041,-1151.18960832,0.00016567,2]
[403657349,1769449832052,-784.54454562,0.00016567,2]
[403657350,1769449832063,-622.55672686,0.00016567,2]
[403657351,1769449832116,-347.88856276,0.00016567,2]
[403657352,1769449832128,-9652.00722466,0.00016567,2]
[403657353,1769449832388,-82982.30087,0.00016567,2]
[403657354,1769449832399,-1470.07670614,0.00016567,2]
[403657355,1769449832435,-2423.67296601,0.00016567,2]
[403657356,1769449833411,568.6885973,0.00016566,2]
[403657357,1769449834587,500.0,0.00016566,2]
[403657358,1769449834619,500.0,0.00016566,2]
[403657359,1769449834699,298.53222254,0.00016566,2]
[403657360,1769449834727,500.0,0.00016566,2]
[403657361,1769449834787,624.17832799,0.00016566,2]
[403657365,1769449837865,-254.18043806,0.00016567,2]
[403657366,1769449837919,-793.66649967,0.00016567,2]
[403657367,1769449838078,-446.26987052,0.00016567,2]
[403657544,1769449839933,-1393.57458515,0.00016567,2]
[403657549,1769449839976,-603.9459179,0.00016567,2]
[403657555,1769449840019,-296.32408107,0.00016567,2]
[403657561,1769449840074,-759819.66094738,0.00016567,2]
[403657562,1769449840085,-1000.0,0.00016567,2]
[403657565,1769449840104,-903.0922,0.00016567,2]
[403657567,1769449840115,-210.3310749,0.00016658,2]
[403657569,1769449840125,-1689.79226202,0.00016658,2]
[403657571,1769449840135,-1014.59985341,0.00016758,2]
[403657573,1769449840144,-500.0,0.00016777,2]
[403657575,1769449840154,-500.0,0.00016777,2]
[403657577,1769449840163,-500.0,0.00016777,2]
[403657579,1769449840172,-500.0,0.00016777,2]